[Event "Czech Championship 2022"]
[Site "Usti nad Labem"]
[Date "2022.05.19"]
[Round "6.10"]
[White "Buchcar, Tomas"]
[Black "Mikes, Jan"]
[Result "0-1"]
[ECO "B11"]
[WhiteElo "2183"]
[BlackElo "2349"]
[Annotator "TA"]
[PlyCount "140"]
[EventDate "2022.05.12"]
[EventType "swiss"]
[EventCountry "CZE"]
[SourceTitle "playchess.com"]
[Source "ChessBase"]
[SourceQuality "1"]
[TimeControl "40/5400+30:1800+30"]

{[%evp 10,140,23,-20,-14,-10,-5,-24,2,-6,0,-35,-22,-31,38,10,219,207,243,210,241,221,231,176,189,196,225,217,237,236,315,322,308,311,293,302,322,322,321,311,310,310,310,306,317,317,416,323,328,301,307,257,262,0,297,0,316,316,351,332,414,387,396,375,454,428,395,364,785,304,296,0,537,256,265,0,0,0,0,0,0,0,0,-35,0,-46,0,0,0,-260,-186,-339,-372,-342,-274,-354,-321,-331,-322,-280,-296,-262,-275,-348,0,-321,-225,-881,0,0,0,0,0,0,1557,1500,1321,-1109,-1063,-996,-971,-906,-859,-733,-667,-12835,-12835,-12834,-12836,-12834,-12834,-12844,-12845]} 1. e4 {[%emt 0:00:03]} c6 {[%emt 0:00:21]} 2. Nc3 {[%emt 0:01:39][%cal Bb1c3,Bc3e4,Be4g3,Bg3f1,Bf1e3][%mdl 32]} d5 {[%emt 0:00:09]} 3. Nf3 {[%emt 0:00:07]} dxe4 {[%emt 0:00:12]} 4. Nxe4 {[%emt 0:00:10]} Nf6 {[%emt 0:00:05]} 5. Ng3 {[%emt 0:02:38]} h5 {[%emt 0:02:06]} 6. h4 {[%emt 0:06:29]} Bg4 {[%emt 0:00:50] B11: Caro-Kann: Two Knights Variation.} 7. Be2 {[%emt 0:00:25]} Qc7 {[%emt 0:01:40]} 8. d4 {[%emt 0:05:13]} Nbd7 {[%emt 0:00:56] Prevents Ne5. Black has an edge.} 9. c3 {[%emt 0:03:07]} e6 {[%emt 0:01:48]} 10. Nf1 {[%emt 0:00:27]} Bd6 {[%emt 0:10:19]} 11. Ne3 {[%emt 0:01:48] [#]} Ne4 $146 {[%emt 0:02:54]} (11... c5 $15) ({Predecessor:} 11... O-O-O 12. b4 Nd5 13. c4 Bxb4+ 14. Bd2 Bxd2+ 15. Qxd2 Nxe3 16. Qxe3 Qa5+ 17. Nd2 Bxe2 18. Qxe2 {0-1 (55) Drahoradova,Z (1683)-Joukl,Z (2040) Chess.com INT 2021}) 12. Nd2 {[%emt 0:06:54]} Ng3 {[%emt 0:13:48]} 13. fxg3 $18 {[%emt 0:02:55]} Bxg3+ {[%emt 0:00:06]} 14. Kf1 {[%emt 0:00:04]} Nf6 {[%emt 0:00:41]} 15. Bf3 {[%emt 0:05:09]} (15. Bxg4 $6 hxg4 16. Nb3 (16. Qe2 Qf4+ 17. Kg1 Bxh4 $16) 16... Qf4+ 17. Ke2 Ne4 $16) 15... O-O-O {[%emt 0:02:47]} 16. Nxg4 {[%emt 0:03:32]} hxg4 {[%emt 0:00:13]} 17. Bxg4 {[%emt 0:00:38]} Qf4+ {[%emt 0:00:56]} 18. Bf3 $1 {[%emt 0:00:23][%cal Od2e4]} Rxh4 {[%emt 0:02:31] ( -> ...Qe3)} (18... Qe3 $2 19. Ne4 $1 {[%mdl 512]} Ng4 20. h5 $18) 19. Ke2 {[%emt 0:03:16][%cal Od2f1] Against Qe3+} (19. Rxh4 Qxh4 20. Qc2 g5 $11) 19... Qf5 {[%emt 0:07:00]} 20. Rxh4 {[%emt 0:06:45]} Bxh4 {[%emt 0:00:06]} 21. Nc4 {[%emt 0:00:38]} g5 {[%emt 0:11:35]} 22. Ne3 {[%emt 0:17:22]} (22. Qd3 g4 $16) 22... Qg6 {[%emt 0:02:09]} 23. Qd3 {[%emt 0:00:55]} (23. Kf1 $6 Bg3 $18) 23... Qg7 {[%emt 0:00:55]} 24. g4 {[%emt 0:00:33]} Bg3 {[%emt 0:02:22]} 25. Bd2 {[%emt 0:01:10]} Rh8 {[%emt 0:00:45]} 26. Rf1 {[%emt 0:00:28]} Rh2+ {[%emt 0:00:35]} 27. Kd1 {[%emt 0:00:13]} Qh8 {[%emt 0:00:10]} 28. Be2 {[%emt 0:04:05] Hoping for Nc4.} Bf4 {[%emt 0:00:39]} 29. Nc4 {[%emt 0:04:20]} Nd5 {[%emt 0:01:41]} 30. Qe4 {[%emt 0:03:00][%cal Rd2f4]} Nf6 {[%emt 0:04:30]} 31. Qd3 {[%emt 0:02:26]} Nd5 {[%emt 0:00:16]} 32. Ne3 $2 {[%emt 0:02:34]} (32. Rf3 $18) 32... Rh3 $2 {[%emt 0:05:47][%mdl 8192]} (32... Nf6 $1 $11 {and Black is okay.}) 33. Rf3 {[%emt 0:00:32]} Rh1+ {[%emt 0:07:31]} 34. Kc2 {[%emt 0:00:13]} Nf6 {[%emt 0:01:39]} 35. Ng2 {[%emt 0:01:38]} Bxd2 {[%emt 0:01:20]} 36. Kxd2 {[%emt 0:01:21]} (36. Qxd2 Rh2 $18) 36... Ra1 {[%emt 0:01:54]} 37. a3 {[%emt 0:04:32]} Qh1 {[%emt 0:02:00][%csl Ga1][%cal Rh1c1]} 38. Bf1 {[%emt 0:00:29]} Nd5 {[%emt 0:07:20]} (38... Ne4+ 39. Qxe4 Rxf1 40. Rxf1 Qxf1) 39. Qe2 $2 {[%emt 0:01:57]} (39. Rxf7 {[%cal Od3g6] Qg6! would kill now.} Nf4 40. Nxf4 Rxf1 41. Qe2 $1) 39... Qh7 {[%emt 0:01:02]} 40. Qd3 {[%emt 0:00:11]} (40. Qe5 $18) 40... Qh2 {[%emt 0:01:22][%mdl 8192]} (40... Qh1 $1 $11 41. Rxf7 Nf4 42. Nxf4 Rxf1) 41. Rf2 {[%emt 0:37:15]} (41. Rxf7 $142 Nf4 42. Qf3) 41... Nf4 {[%emt 0:33:20] Against Qg6} 42. Qe3 {[%emt 0:00:55]} (42. Qf3 $18) 42... Rxf1 $1 $11 {[%emt 0:00:31][%mdl 64] Remove Defender, Decoy} 43. Rxf1 {[%emt 0:00:53]} Qxg2+ {[%emt 0:00:05][%mdl 4096] Endgame KQR-KQN} 44. Rf2 {[%emt 0:00:00]} Qxg4 {[%emt 0:00:00]} 45. Rh2 {[%emt 0:00:00]} Kd7 {[%emt 0:00:00]} 46. c4 {[%emt 0:00:00]} Qf5 {[%emt 0:00:00]} 47. Kc3 {[%emt 0:00:00]} (47. Rh8 $11 {feels stronger.}) 47... Qa5+ {[%emt 0:00:00]} (47... a5 $15) 48. Kc2 {[%emt 0:00:00]} Qa4+ {[%emt 0:00:00]} 49. Qb3 $2 {[%emt 0:00:00][%mdl 8192]} (49. Kb1 $1 $11 {and White has nothing to worry.}) 49... Qxb3+ $19 {[%emt 0:00:00]} 50. Kxb3 {[%emt 0:00:00] KR-KN} Ke7 $1 {[%emt 0:00:00]} 51. Kc3 {[%emt 0:00:00]} g4 {[%emt 0:00:00]} 52. Rh4 {[%emt 0:00:00]} f5 {[%emt 0:00:00]} 53. Kd2 {[%emt 0:00:00]} Kf6 {[%emt 0:00:00][%cal Og4g3]} 54. Rh7 {[%emt 0:00:00]} Nh3 $1 {[%emt 0:00:00]} (54... g3 55. Ke3 $11) 55. Ke2 {[%emt 0:00:00]} (55. Rxb7 $2 g3 56. Rb3 f4 $19) 55... f4 {[%emt 0:00:00]} 56. Rxb7 {[%emt 0:00:00]} Kf5 $2 {[%emt 0:00:22]} ({Better is} 56... g3 $19 {Threatens to win with ...g2.} 57. Kf3 (57. Rxa7 $2 g2 $19) 57... Ng5+ 58. Kg2 (58. Kxf4 $2 g2 $19) 58... a6) 57. Rg7 $2 {[%emt 0:00:00][%mdl 8192]} (57. Rxa7 $11 {and White stays safe.} g3 58. Rg7 (58. Kf3 Ng5+ 59. Kg2 Kg4 $11)) 57... Ng5 {[%emt 0:01:09] Strongly threatening ...g3.} 58. b4 $2 {[%emt 0:00:00]} (58. Kf2 Nf3 59. d5 (59. Rxa7 Nxd4 60. b4 g3+ 61. Kf1 Ke4 $19) 59... exd5 60. cxd5 cxd5 61. Rxa7) 58... Nf3 $2 {[%emt 0:00:42]} (58... g3 $19 59. Kf1 f3) 59. Rd7 $11 {[%emt 0:04:17]} Ke4 {[%emt 0:00:48]} 60. b5 $1 {[%emt 0:00:16]} cxb5 {[%emt 0:02:38]} (60... Nxd4+ $2 61. Rxd4+ $1 {[%mdl 512]} Kxd4 62. bxc6 $18) 61. c5 $1 {[%emt 0:00:11] Black must now prevent c6.} Ng5 $2 {[%emt 0:00:24][%mdl 8192]} (61... Nxd4+ $2 62. Rxd4+ $1 {[%mdl 512]} Kxd4 63. c6 $18) (61... g3 $11 62. Kf1 Nd2+ 63. Kg2 Nc4) 62. c6 $1 $18 {[%emt 0:01:09]} f3+ {[%emt 0:00:15]} 63. Kd2 $4 {[%emt 0:04:01][%mdl 8192]} (63. Ke1 $18 Kd3 64. Rg7) 63... g3 $19 {[%emt 0:05:13] ...g2 is the strong threat. Black is clearly winning.} 64. c7 {[%emt 0:00:39]} g2 {[%emt 0:00:16]} 65. c8=Q {[%emt 0:00:12]} g1=Q {[%emt 0:00:05]} 66. Qb7+ {[%emt 0:02:02] [#]} Kf4 $1 {[%emt 0:00:04]} ({Not} 66... Kf5 67. Qxb5+ Kg6 68. Qe5 $11) 67. Qxb5 {[%emt 0:01:16] And now Qe5+ would win.} Ne4+ {[%emt 0:00:12]} (67... Kg4 $2 {[#]} 68. Qxg5+ $3 {[%mdl 512]} Kxg5 69. Rg7+ Kf4 70. Rxg1 $18) 68. Kc2 {[%emt 0:00:15]} Qf2+ {[%emt 0:00:37]} 69. Kb3 {[%emt 0:00:13]} Qe3+ {[%emt 0:00:04]} 70. Kb2 {[%emt 0:00:10]} Qe2+ {[%emt 0:03:45] Quite a comeback for Black.  Weighted Error Value: White=0.72/Black=0.48} 0-1

[Event "Czech Championship 2022"]
[Site "Usti nad Labem"]
[Date "2022.05.19"]
[Round "6.11"]
[White "Sorm, Daniel"]
[Black "Delgerdalai, Bayarjavkhlan"]
[Result "1-0"]
[ECO "A47"]
[WhiteElo "2306"]
[BlackElo "2119"]
[Annotator "TA"]
[PlyCount "93"]
[EventDate "2022.05.12"]
[EventType "swiss"]
[EventCountry "CZE"]
[SourceTitle "playchess.com"]
[Source "ChessBase"]
[SourceQuality "1"]
[TimeControl "40/5400+30:1800+30"]

{[%evp 9,93,0,46,41,48,36,37,35,40,23,22,32,44,27,47,29,37,6,10,0,42,45,74,68,68,67,67,68,69,78,63,62,56,48,93,93,117,84,79,56,150,93,106,97,107,83,191,183,251,251,256,257,258,258,255,227,246,253,261,252,280,289,294,280,349,278,306,299,324,271,377,314,371,345,458,458,491,462,704,670,12835,12819,29982,29975,29974,12827]} 1. d4 {[%emt 0:00:02]} Nf6 {[%emt 0:00:12]} 2. Bf4 {[%emt 0:00:15]} e6 {[%emt 0:00:22]} 3. e3 {[%emt 0:00:29]} b6 {[%emt 0:00:47]} 4. Nf3 {[%emt 0:00:25]} c5 {[%emt 0:01:16]} 5. Bd3 {[%emt 0:00:48]} Ba6 {[%emt 0:03:05]} (5... Bb7 $11) 6. Bxa6 $14 {[%emt 0:02:40] A47: 1 d4 Nf6 2 Nf3 b6: Torre, London and Colle Systems.} Nxa6 {[%emt 0:00:09] [#]} 7. O-O $146 {[%emt 0:00:21]} ({Predecessor:} 7. c3 Nb8 8. h3 d5 9. Nbd2 Bd6 10. Ne5 Bxe5 11. Bxe5 Nbd7 12. Bh2 a5 13. a3 {0-1 (78) Flores,C (1340)-Da Rocha,L (1647) Sao Paulo 2018}) 7... Be7 {[%emt 0:07:26]} 8. c4 {[%emt 0:02:36] White is slightly better.} Nh5 {[%emt 0:05:05]} 9. Be5 {[%emt 0:00:37]} f6 {[%emt 0:01:12]} 10. Bg3 {[%emt 0:03:49]} Nxg3 {[%emt 0:04:58]} 11. hxg3 {[%emt 0:00:07]} O-O {[%emt 0:05:46]} 12. d5 {[%emt 0:00:57]} f5 {[%emt 0:01:48]} 13. Qa4 {[%emt 0:06:08]} Nc7 {[%emt 0:03:27]} 14. Rd1 {[%emt 0:12:16] [#] Threatens to win with d6.} exd5 {[%emt 0:03:48]} (14... Bf6 $5 {[%cal Rf6b2]} 15. Nc3 Bxc3 16. bxc3 exd5 $11) 15. Nc3 {[%emt 0:00:10]} Qe8 {[%emt 0:19:52]} 16. Nxd5 {[%emt 0:02:30] White is more active.} Nxd5 {[%emt 0:00:11]} 17. Rxd5 {[%emt 0:00:06]} d6 {[%emt 0:01:29]} 18. Qc2 {[%emt 0:05:07]} Qf7 {[%emt 0:00:49]} 19. Rad1 {[%emt 0:03:37]} a6 {[%emt 0:06:03]} 20. a4 {[%emt 0:01:39]} Rab8 {[%emt 0:01:15]} 21. Qd3 {[%emt 0:01:41]} Qe6 {[%emt 0:02:28]} 22. b3 {[%emt 0:01:17]} Rf7 {[%emt 0:07:55]} 23. Nd2 {[%emt 0:05:12]} Rbf8 {[%emt 0:04:08]} 24. Re1 {[%emt 0:04:07]} h5 {[%emt 0:04:42]} (24... f4 $14) 25. Nf3 {[%emt 0:04:03]} (25. Re2 $142) 25... Qe4 $16 {[%emt 0:01:11]} 26. Qe2 {[%emt 0:09:32][%cal Of3e5] And now Ne5! would win.} Qg4 {[%emt 0:02:15]} 27. Kf1 {[%emt 0:02:12]} h4 {[%emt 0:01:40]} (27... Re8 $16) 28. gxh4 $18 {[%emt 0:01:56]} Bxh4 {[%emt 0:00:17]} (28... Rf6 {was necessary.} 29. g3 Qh3+ 30. Kg1 Re6) 29. Rxd6 {[%emt 0:03:55]} Be7 {[%emt 0:08:24]} 30. Rxb6 {[%emt 0:01:28]} Rf6 {[%emt 0:00:48]} 31. Rxf6 {[%emt 0:04:37]} Rxf6 {[%emt 0:00:07]} 32. Ng1 {[%emt 0:00:20]} Qe4 {[%emt 0:00:43]} 33. Rd1 {[%emt 0:01:21]} Rb6 {[%emt 0:00:58]} 34. Qd3 {[%emt 0:01:17]} Qg4 {[%emt 0:00:25]} 35. f3 {[%emt 0:06:05]} Qh5 {[%emt 0:01:00]} 36. Nh3 {[%emt 0:02:31][%cal Bg1h3,Bh3f2,Bf2e4][%mdl 32]} Rd6 {[%emt 0:00:21]} 37. Qe2 {[%emt 0:00:57] Hoping for Rxd6.} Rb6 {[%emt 0:01:07]} 38. Rd3 {[%emt 0:02:27]} g5 {[%emt 0:00:45]} 39. Kg1 {[%emt 0:06:52]} Rh6 {[%emt 0:00:48]} 40. Rd5 {[%emt 0:01:32]} Qg6 {[%emt 0:00:52]} 41. Nf2 {[%emt 0:23:17]} Qe6 {[%emt 0:16:12]} 42. Qd3 {[%emt 0:01:10]} Rf6 {[%emt 0:01:16]} 43. e4 {[%emt 0:01:41][%cal Be3e4,Be4f5][%mdl 32]} Bd6 {[%emt 0:01:15]} (43... Kf7 $142 44. Nh3 Rg6 45. Rxf5+ Ke8) 44. Kf1 {[%emt 0:01:27][%cal Re4f5]} Kg7 {[%emt 0:03:00]} 45. exf5 {[%emt 0:01:15]} Qe7 {[%emt 0:01:01]} 46. Ne4 {[%emt 0:01:02]} Rh6 {[%emt 0:00:30]} 47. Rxd6 {[%emt 0:01:03] Weighted Error Value: White=0.13 (very precise) /Black=0.45} (47. f6+ $142 Rxf6 48. Nxf6 Be5 49. Nh5+ Kf7 50. Qh7+ Kf8 51. Qf5+ Ke8 52. Rxe5) 1-0

[Event "Czech Championship 2022"]
[Site "Usti nad Labem"]
[Date "2022.05.19"]
[Round "6.12"]
[White "Babula, Vlastimil jr"]
[Black "Hrbek, Stepan"]
[Result "1-0"]
[ECO "D00"]
[WhiteElo "2217"]
[BlackElo "2303"]
[Annotator "TA"]
[PlyCount "77"]
[EventDate "2022.05.12"]
[EventType "swiss"]
[EventCountry "CZE"]
[SourceTitle "playchess.com"]
[Source "ChessBase"]
[SourceQuality "1"]
[TimeControl "40/5400+30:1800+30"]

{[%evp 9,77,-16,-6,-31,0,0,0,-48,-34,-43,-34,-63,-56,-64,-30,-25,89,77,89,58,141,140,243,237,98,169,323,227,222,168,169,0,0,-175,65,-227,-219,-212,124,0,177,0,424,418,641,639,639,633,571,470,448,470,454,456,491,487,481,471,560,553,595,598,743,652,739,721,707,674,664,634]} 1. d4 {[%emt 0:00:05]} Nf6 {[%emt 0:00:10]} 2. Nc3 {[%emt 0:00:16]} d5 {[%emt 0:00:06]} 3. Bf4 {[%emt 0:00:18]} a6 {[%emt 0:00:19]} 4. e3 {[%emt 0:01:06]} e6 {[%emt 0:00:16]} 5. Nf3 {[%emt 0:06:09]} c5 {[%emt 0:00:47]} 6. Ne5 {[%emt 0:02:42] D00: 1 d4 d5: Unusual lines.} cxd4 {[%emt 0:01:27]} 7. exd4 {[%emt 0:00:32]} Nc6 {[%emt 0:00:12]} 8. g4 {[%emt 0:19:38]} (8. Nxc6 $11 bxc6 9. Qf3) 8... Bb4 {[%emt 0:00:07]} 9. Nxc6 {[%emt 0:07:47]} bxc6 {[%emt 0:00:51]} 10. Bd3 {[%emt 0:01:07]} c5 {[%emt 0:12:57]} 11. dxc5 {[%emt 0:14:15] [#]} d4 $146 {[%emt 0:06:48][%mdl 64] Pin} ({Predecessor:} 11... O-O 12. g5 Nd7 13. Bd6 Qxg5 14. Bxf8 Nxf8 15. a3 Bxc3+ 16. bxc3 Qe5+ 17. Kf1 Qxc3 {1-0 (53) Esipenko,A (2701)-Trent,L (2399) Chess.com INT 2021}) 12. a3 {[%emt 0:00:30]} Bb7 {[%emt 0:09:09] [#]} (12... Bxc5 $11 {remains equal.} 13. Ne4 Bb7) 13. axb4 $1 $16 {[%emt 0:07:10][%cal Oh1g1]} Bxh1 {[%emt 0:03:14]} 14. Na4 {[%emt 0:00:44] White is more active.} Nd5 {[%emt 0:09:47]} (14... e5 $14 15. Bxe5 (15. Qe2 O-O $15) 15... O-O) 15. Bd6 {[%emt 0:01:08][%mdl 1024] White has strong compensation. A strong pair of Bishops.} h5 {[%emt 0:01:46] [#]} (15... Ra7 $16) 16. Ke2 $1 $18 {[%emt 0:08:30]} Bg2 {[%emt 0:04:54]} 17. Qg1 {[%emt 0:00:39]} Bh3 {[%emt 0:10:52]} (17... e5 {is a better defense.}) 18. Qg3 {[%emt 0:01:08] Hoping for gxh5.} hxg4 {[%emt 0:03:03]} 19. b5 {[%emt 0:06:26]} f5 {[%emt 0:11:37] aiming for ...axb5.} 20. Qe5 $2 {[%emt 0:02:45]} ({Better is} 20. Nb6 $18 Nxb6 21. cxb6 Qxb6 22. Qe5) 20... Kf7 $11 {[%emt 0:00:45][%cal Og4g3] Strongly threatening ...g3!} 21. bxa6 $2 {[%emt 0:01:48] [#]} (21. b6 $11 g3 22. Qxg3 Bg4+ 23. Kf1) 21... Bg2 $2 {[%emt 0:00:25]} ({Black should play} 21... g3 $1 $19 22. Qxg3 Bg4+ 23. Kf1 Qg5) 22. Qxd4 {[%emt 0:03:13][%mdl 8192]} (22. Nb6 $1 $14 {stays ahead.} Nxb6 23. cxb6) 22... Bf3+ $19 {[%emt 0:02:20]} 23. Ke1 {[%emt 0:00:51] And now Nc3 would win.} g5 $2 {[%emt 0:09:00]} (23... g3 $19 24. Bxg3 f4) 24. Be5 {[%emt 0:05:41] The board is on fire.} (24. Kd2 $16) 24... Rh3 $2 {[%emt 0:02:32] White now steadily converts the win.} (24... Rh4 $11 {and Black is okay.} 25. Bg3 Rh5) 25. Bf1 $2 {[%emt 0:01:10]} (25. Nb6 $18 g3 26. fxg3 (26. Nxa8 $2 Rh4 $19) 26... Rxh2 27. b4 (27. Nxa8 Rh1+ 28. Bf1 Qxa8 $16) 27... Rh1+ 28. Kd2 (28. Kf2 Rh2+ 29. Ke1 g4 $16) 28... Rxa1 29. Qxa1 Nxb6 30. cxb6 (30. Ke3 $2 Nd5+ 31. Kxf3 Nxb4 $19) 30... Qxb6 31. Qd4 Qxd4 32. Bxd4) 25... Rh7 $2 {[%emt 0:00:55][%mdl 8192]} ({Don't play} 25... Qa5+ 26. Qd2 Qb4 27. Qxb4 Nxb4 28. Bxh3 $16) (25... Rh4 $1 $11 26. Qd2 Qe7) 26. Nb6 $18 {[%emt 0:00:39]} Nxb6 {[%emt 0:02:39]} (26... Rh4 $142) 27. Qxd8 {[%emt 0:00:06] White is clearly winning.} Rxd8 {[%emt 0:00:07]} 28. cxb6 {[%emt 0:00:08]} Kg6 {[%emt 0:02:33]} 29. b7 {[%emt 0:00:39]} Bxb7 {[%emt 0:00:27]} 30. axb7 {[%emt 0:00:11]} Rxb7 {[%emt 0:00:04]} 31. Ra6 {[%emt 0:01:09]} f4 {[%emt 0:01:22]} 32. Bd3+ {[%emt 0:00:36]} Kf7 {[%emt 0:02:18]} 33. Be2 {[%emt 0:00:41]} f3 {[%emt 0:00:57]} 34. Bc4 {[%emt 0:00:35]} Kf8 {[%emt 0:01:03]} 35. Rxe6 {[%emt 0:01:41]} Ra8 {[%emt 0:00:09]} 36. b3 {[%emt 0:00:44]} Ra2 {[%emt 0:00:06]} 37. Kd2 {[%emt 0:00:24]} Ra5 {[%emt 0:00:21]} 38. Bc3 {[%emt 0:01:09]} Rd7+ {[%emt 0:00:12]} 39. Bd3 {[%emt 0:00:26] Weighted Error Value: White=0.57/Black=0.79} 1-0

[Event "Czech Championship 2022"]
[Site "Usti nad Labem"]
[Date "2022.05.19"]
[Round "6.13"]
[White "Gnojek, Petr"]
[Black "Bouska, Jiri"]
[Result "0-1"]
[ECO "E62"]
[WhiteElo "2302"]
[BlackElo "2117"]
[Annotator "TA"]
[PlyCount "136"]
[EventDate "2022.05.12"]
[EventType "swiss"]
[EventCountry "CZE"]
[SourceTitle "playchess.com"]
[Source "ChessBase"]
[SourceQuality "1"]
[TimeControl "40/5400+30:1800+30"]

{[%evp 14,136,51,26,35,23,35,23,72,48,76,49,43,59,57,40,93,89,93,53,76,57,80,66,112,109,166,157,158,176,190,163,171,-7,207,217,217,214,211,216,268,278,373,356,315,272,454,390,456,400,378,314,341,322,452,92,83,83,92,95,242,93,108,83,77,74,86,31,35,0,0,0,0,0,0,0,0,-64,0,0,0,0,0,0,0,0,0,0,0,-8,0,-8,-8,-8,-8,-8,-8,-8,-8,-8,-8,-8,-8,-8,-8,-8,-8,-8,-8,-8,-8,-8,-8,-8,-8,-8,-8,-189,-103,-118,-8,-29983,-29984,-29984,-29985]} 1. d4 {[%emt 0:00:04]} Nf6 {[%emt 0:00:07]} 2. c4 {[%emt 0:00:09]} g6 {[%emt 0:00:06]} 3. g3 {[%emt 0:00:15]} Bg7 {[%emt 0:00:09]} 4. Bg2 {[%emt 0:00:08]} d6 {[%emt 0:00:14]} 5. Nc3 {[%emt 0:00:14]} O-O {[%emt 0:00:44]} 6. Nf3 {[%emt 0:00:34]} c6 {[%emt 0:00:23]} 7. e4 {[%emt 0:00:30]} Bg4 {[%emt 0:08:25]} 8. O-O {[%emt 0:00:52]} e5 {[%emt 0:01:44] E62: King's Indian: Fianchetto: 6...c6 and Panno Variation (6...Nc6) without ...a6.} 9. d5 {[%emt 0:01:10]} cxd5 {[%emt 0:07:46]} 10. cxd5 {[%emt 0:00:10]} Nbd7 {[%emt 0:00:24]} (10... Bd7 $11 {deserves consideration.}) 11. Be3 {[%emt 0:02:46] [#]} a6 $146 {[%emt 0:09:24]} ({Predecessor:} 11... Nh5 12. h3 Bxf3 13. Bxf3 Nhf6 14. Rc1 Ne8 15. Bg2 f5 16. f4 exf4 17. Bxf4 Qb6+ {½-½ (41) Balov,D (2161)-Veleski,R (2257) Stip 2002}) 12. Qd2 {[%emt 0:08:56]} b5 {[%emt 0:12:16]} 13. Ne1 {[%emt 0:03:21]} Nb6 {[%emt 0:06:35]} ({Less strong is} 13... b4 14. Na4 $16) 14. b3 {[%emt 0:00:59] Prevents Nc4.} b4 {[%emt 0:01:56]} ({Black should play} 14... Bd7 $14) 15. Nd1 $16 {[%emt 0:05:04]} a5 {[%emt 0:06:11]} 16. Nb2 {[%emt 0:01:32]} Bd7 {[%emt 0:01:53]} 17. f3 {[%emt 0:02:40] Against Ng4} Bb5 {[%emt 0:01:25]} 18. Ned3 {[%emt 0:02:18]} Nfd7 {[%emt 0:02:54]} (18... Nfxd5 $14 19. exd5 Nxd5) 19. Rfc1 {[%emt 0:04:03]} Rc8 {[%emt 0:01:31]} (19... Qb8 $16) 20. a3 $18 {[%emt 0:03:02]} bxa3 {[%emt 0:02:26]} 21. Rxa3 {[%emt 0:00:10]} Bxd3 {[%emt 0:02:32]} 22. Rxc8 {[%emt 0:03:11]} ({But not} 22. Qxd3 $6 Rxc1+ 23. Bxc1 Qc7 $14) 22... Qxc8 {[%emt 0:00:41]} 23. Qxd3 {[%emt 0:01:05] [#]} (23. Nxd3 $18 a4 24. Nb4) 23... f5 $2 {[%emt 0:02:38]} (23... Bh6 $1 $11) 24. Rxa5 {[%emt 0:03:54]} f4 {[%emt 0:02:51]} 25. Bd2 {[%emt 0:00:09]} Nc5 {[%emt 0:00:43]} 26. Qc3 {[%emt 0:04:18]} fxg3 {[%emt 0:02:42]} 27. hxg3 {[%emt 0:00:06]} Qd8 {[%emt 0:25:20]} 28. b4 {[%emt 0:52:50]} Ncd7 {[%emt 0:00:30]} 29. Be3 {[%emt 0:00:30]} Qf6 $2 {[%emt 0:00:00]} (29... Qb8 {was called for.} 30. Ra6 Qb7) 30. Ra7 {[%emt 0:00:00]} Rc8 {[%emt 0:00:00]} 31. Qd3 {[%emt 0:00:00]} h5 {[%emt 0:00:00]} 32. Qd2 {[%emt 0:00:00]} h4 {[%emt 0:00:06]} 33. Bg5 {[%emt 0:00:00]} Rc2 {[%emt 0:00:31]} (33... Qf8 $142 34. gxh4 Ra8) 34. Bxf6 $2 {[%emt 0:00:00]} (34. Qxc2 $18 {and the rest is easy.} Qxg5 35. gxh4 Qxh4 36. Nd3) 34... Rxd2 $16 {[%emt 0:00:08]} 35. Bxg7 {[%emt 0:00:00]} Kxg7 {[%emt 0:01:20]} 36. Nc4 {[%emt 0:00:00]} Rd1+ {[%emt 0:00:31]} (36... Nxc4 $16 {is a better defense.} 37. Rxd7+ Kh6 38. gxh4 Rb2) 37. Kh2 {[%emt 0:00:00]} (37. Kf2 $1 $18 {Threatens to win with Nxb6.} Nxc4 38. Rxd7+ Kh6 39. gxh4) 37... hxg3+ {[%emt 0:00:18]} 38. Kxg3 {[%emt 0:00:00]} Nxc4 {[%emt 0:00:15]} 39. Rxd7+ {[%emt 0:00:00][%mdl 4096] Endgame KRB-KRN} Kf6 {[%emt 0:00:19] [#]} 40. Bh3 {[%emt 0:00:00]} (40. Rc7 $1 $16 {[%cal Rc7c4]} Na3 41. Rc6) 40... Rb1 $14 {[%emt 0:00:55]} 41. Rb7 {[%emt 0:10:34]} (41. b5 $5) 41... Kg5 {[%emt 0:30:31]} 42. b5 {[%emt 0:04:22]} Rb3 {[%emt 0:00:00]} 43. Rg7 {[%emt 0:00:00]} Kf6 {[%emt 0:00:00] Inhibits Bf5.} 44. Rd7 {[%emt 0:00:00] Hoping for Bf1.} Kg5 {[%emt 0:00:00]} 45. Be6 {[%emt 0:00:00]} ({Better is} 45. Bf1 $11 Nd2 46. Kf2 Nxf1 47. Kxf1 Rxf3+ 48. Ke2) 45... Rxb5 {[%emt 0:00:00]} (45... Nd2 $1 $15) 46. Rg7 {[%emt 0:00:00]} Kf6 {[%emt 0:00:00] Against Bf5} 47. Rc7 {[%emt 0:00:00] Kh4 would kill now.} Rc5 $1 {[%emt 0:00:00]} 48. Rd7 {[%emt 0:00:00] Threatening mate with Kh4.} Kg5 {[%emt 0:00:00]} 49. Bh3 {[%emt 0:00:00]} Nd2 {[%emt 0:00:00]} 50. Rxd6 {[%emt 0:03:30]} Rc3 {[%emt 0:00:00][%csl LRe4,LRf3] ...Nxe4+ is the strong threat.} 51. Kg2 {[%emt 0:03:48]} Nxf3 {[%emt 0:00:00]} 52. Rc6 {[%emt 0:00:15]} Nh4+ {[%emt 0:00:00]} 53. Kh2 {[%emt 0:00:06]} Rd3 {[%emt 0:00:00]} 54. Bf1 {[%emt 0:02:39]} Rd1 {[%emt 0:01:51]} 55. Bb5 {[%emt 0:02:04]} Nf3+ {[%emt 0:01:49]} 56. Kg3 {[%emt 0:00:03]} Nd4 {[%emt 0:00:08][%csl LRb5,LRc6] Against Be2} 57. Rc5 {[%emt 0:00:40]} Nxb5 {[%emt 0:00:23]} 58. Rxb5 $11 {[%emt 0:00:04] KR-KR} Rd3+ {[%emt 0:00:27]} 59. Kf2 {[%emt 0:00:12]} Kf4 {[%emt 0:00:10]} 60. Rb4 {[%emt 0:00:04]} g5 {[%emt 0:00:13][%cal Bg6g5,Bg5g4,Bg4g3,Bg3g2][%mdl 32]} 61. Ke2 {[%emt 0:00:02]} Ra3 {[%emt 0:01:32]} 62. Rc4 {[%emt 0:05:34]} Ra2+ {[%emt 0:00:15]} 63. Kd3 {[%emt 0:00:30]} g4 {[%emt 0:02:19] Strongly threatening ...g3.} 64. Rc2 {[%emt 0:00:02]} Ra3+ {[%emt 0:00:58]} 65. Rc3 $2 {[%emt 0:01:16]} (65. Ke2 $1 $11) 65... Ra4 {[%emt 0:00:37]} ({Black should try} 65... Rxc3+ $19 66. Kxc3 g3) 66. Rc4 {[%emt 0:00:21] [#]} Ra1 {[%emt 0:00:08]} (66... Rxc4 $1 $17 67. Kxc4 g3) 67. Ke2 $2 {[%emt 0:02:16][%mdl 8192]} (67. Rc6 $11) 67... g3 {[%emt 0:00:28]} 68. Rc8 {[%emt 0:01:33]} g2 {[%emt 0:00:13] Black used his chance.  Weighted Error Value: White=0.30/Black=0.23 (precise)} 0-1